Cogmind - Beta 11.1 --- EXPLORER MODE // 2022.11.17 @ 23:23:33 Player: Departed Result: Self-destructed Performance ------------- Evolutions (2) 1000 Regions Visited (6) 1200 Robots Destroyed (33) 165 Value Destroyed (639) 639 Prototype IDs (4) 80 Alien Tech Used (0) 0 Bonus (300) 300 TOTAL SCORE: 3384 Bonus ------- Aligned with FarCom 300 Cogmind --------- Core Integrity 353/550 Matter 300/300 Energy 37/100 System Corruption 9% Temperature Cool (9) Movement Hovering (180) Ox2 Location -8/Storage Parts ------- > --- POWER (1) -------- (None) > --- PROPULSION (6) --- Improved Hover Unit > --- UTILITY (3) ------ Medium Storage Unit 0b10 Alert Chip > --- WEAPON (2) ------- Great Maul Mining Claw > --- INVENTORY (10) --- Hover Unit Hover Unit Weight Redist. System Advanced Weight Redist. System Sensor Array Improved Signal Interpreter Actuator Array Skeleton Box Plasma Cutter Great Maul Peak State ------------ > --- POWER ------------ Light Ion Engine > --- PROPULSION ------- Combat Airjet Flight Unit VTOL Module VTOL Module Cesium-ion Thruster Cesium-ion Thruster > --- UTILITY ---------- Medium Storage Unit Experimental Sensor Array 0b10 Alert Chip > --- WEAPON ----------- Lightning Gun Mining Laser > --- INVENTORY -------- Improved Hover Unit Flight Unit VTOL Module Weight Redist. System Visual Processing Unit Sensor Array Actuator Array Light Armor Plating Skeleton Box [Rating: 40] Favorites ----------- Power Light Ion Engine Engine Light Ion Engine Propulsion Aluminum Leg Leg Aluminum Leg Hover Unit Improved Hover Unit Flight Unit Flight Unit Utility Medium Storage Unit Device Weight Redist. System Storage Medium Storage Unit Processor 0b10 Alert Chip Protection Light Armor Plating Weapon Mace Energy Gun Lightning Gun Ballistic Gun Light Assault Rifle Special Weapon Mining Laser Impact Weapon Mace Slashing Weapon Mining Claw Build | -11 -10 -10 -10 -9 -8 -8 ------- Run | Scr Mat Min Exi Min Mat Sto Slots Evolved 5 | . 1 . . . 4 . Power . | . . . . . . . Propulsion 4 | . 1 . . . 3 . Utility 1 | . . . . . 1 . Weapon . | . . . . . . . Parts Attached 51 | 7 5 7 2 3 18 9 Power 3 | 1 . 2 . . . . Engine 3 | 1 . 2 . . . . Core . | . . . . . . . Reactor . | . . . . . . . Propulsion 30 | 2 3 4 . 2 13 6 Treads . | . . . . . . . Leg 5 | 2 2 1 . . . . Wheel . | . . . . . . . Hover 10 | . 1 . . . 3 6 Flight 15 | . . 3 . 2 10 . Utility 8 | 2 . 1 2 . 2 1 Device 3 | . . 1 1 . 1 . Storage 1 | 1 . . . . . . Processor 3 | 1 . . 1 . 1 . Hackware . | . . . . . . . Protection 1 | . . . . . . 1 Artifact . | . . . . . . . Weapon 10 | 2 2 . . 1 3 2 Energy Gun 1 | . . . . . 1 . Energy Cannon . | . . . . . . . Ballistic Gun 2 | 2 . . . . . . Ballistic Cannon . | . . . . . . . Launcher . | . . . . . . . Special Weapon 2 | . . . . 1 1 . Impact Weapon 4 | . 2 . . . 1 1 Slashing Weapon 1 | . . . . . . 1 Piercing Weapon . | . . . . . . . Special Melee Weapon . | . . . . . . . Unidentified Prototypes 4 | . . . 2 . 2 . Parts Lost 16 | . . 2 . . 8 6 Power 2 | . . 1 . . . 1 Propulsion 11 | . . 1 . . 6 4 Utility 3 | . . . . . 2 1 Weapon . | . . . . . . . Highest Loss Streak 5 | . . 2 . . 4 5 To Critical Strikes . | . . . . . . . Average Slot Usage (%) 89 | . 99 90 87 79 82 88 Engine 10 | . 12 10 12 12 8 6 Leg 14 | . 35 20 . . . . Hover 4 | . . . . . 2 42 Flight 17 | . . 14 37 37 38 1 Device 1 | . . 3 3 . 4 . Storage 11 | . 12 12 12 12 8 8 Processor 10 | . 12 8 8 12 8 8 Ballistic Gun 1 | . 4 . . . . . Impact Weapon 12 | . 20 20 12 1 2 7 Naked Turns . | . . . . . . . Heaviest Build 22 | 16 17 17 15 15 19 22 Greatest Support 48 | 20 30 30 18 12 26 48 Greatest Overweight (x) 2 | . 2 2 1 1 1 1 Average Overweight (x) . | . . . . 1 . . Largest Inventory Capacity 10 | 10 10 10 10 10 10 10 Average Capacity 9 | 9 10 10 10 10 10 10 Most Carried 10 | 3 8 9 10 10 10 10 Average Carried 8 | . 5 8 9 9 8 9 Final Capacity 10 | 10 10 10 10 10 10 10 Final Carried 10 | . 8 9 10 10 7 10 Class Distribution -------------------- 91% | Hacker-Mutant 7% | Hacker-Scout Dominant Class ---------------- Hacker-Mutant | -10/Materials Hacker-Mutant | -10/Mines Hacker-Mutant | -10/Exiles Hacker-Mutant | -9/Mines Hacker-Scout | -8/Materials Hacker-Mutant | -8/Storage Resources | -11 -10 -10 -10 -9 -8 -8 ----------- Run | Scr Mat Min Exi Min Mat Sto Matter Collected 722 | 203 137 70 . 40 102 170 Remotely . | . . . . . . . Salvage Created 892 | 12 402 311 . . 60 107 Parts 34 | 3 12 13 . . 2 4 Haulers Intercepted 1 | . 1 . . . . . Recyclers Shooed . | . . . . . . . Parts Field Recycled . | . . . . . . . Retrieved Matter . | . . . . . . . Parts Self-Destructed . | . . . . . . . Prevented . | . . . . . . . Kills | -11 -10 -10 -10 -9 -8 -8 ------- Run | Scr Mat Min Exi Min Mat Sto Combat Hostiles Destroyed 23 | . 8 12 . . 1 2 Melee 10 | . 2 7 . . . 1 Guns 3 | . 2 . . . 1 . Classes Destroyed 10 | 1 5 1 . . 1 2 Worker 5 | . 1 4 . . . . Builder 3 | . . . . . . 3 Tunneler 2 | 1 . 1 . . . . Hauler 1 | . 1 . . . . . Operator 1 | . . . . . . 1 Watcher 4 | . 3 . . . . 1 Swarmer 6 | . 2 2 . . . 2 Grunt 10 | . 6 4 . . . . Sentry 1 | . . . . . 1 . Assembled 6 | . . 6 . . . . Best Kill Streak 6 | 1 4 6 . . 1 3 Combat Bots Only 6 | . 4 6 . . 1 2 Max Kills in Single Turn 1 | 1 1 1 . . 1 1 Gunslinging . | . . . . . . . Exploded . | . . . . . . . Melee 1 | . 1 1 . . . 1 Uniques/NPCs Destroyed . | . . . . . . . Combat | -11 -10 -10 -10 -9 -8 -8 -------- Run | Scr Mat Min Exi Min Mat Sto Damage Taken 1622 | . 102 641 . 6 327 546 Core 376 | . . 179 . . 108 89 Absorbed by Shields . | . . . . . . . Regen/Repaired (Parts) 14 | . 14 . . . . . Core Remaining (%) 64 | 100 . . . 28 . . Volleys Fired 12 | 1 4 . . . 7 . Largest 2 | 2 2 . . . 1 . Hottest 100 | 40 40 . . . 100 . Shots Fired 17 | 2 8 . . . 7 . Gun 16 | 2 8 . . . 6 . Cannon . | . . . . . . . Launcher . | . . . . . . . Special 1 | . . . . . 1 . Kinetic 10 | 2 8 . . . . . Thermal 1 | . . . . . 1 . Explosive . | . . . . . . . Electromagnetic 6 | . . . . . 6 . Robot Hit Streak 4 | 1 4 . . . 4 . Robot Miss Streak 1 | . 1 . . . 1 . Penetration Max . | . . . . . . . Secondary Targets 1 | . 1 . . . . . Max Gunslinging Chain 1 | . 1 . . . . . Shots Hit Robots 73 | 1 22 33 . . 5 12 Core Hits 16 | 1 5 6 . . 2 2 Critical Kills 4 | . 1 2 . . . 1 Critical Parts Destroyed 11 | . 5 4 . . . 2 Critical Strikes 15 | . 6 6 . . . 3 Smash 15 | . 6 6 . . . 3 Melee Attacks 94 | . 23 38 . . 10 23 Impact 89 | . 23 38 . . 10 18 Slashing 5 | . . . . . . 5 Piercing . | . . . . . . . Sneak Attacks 12 | . 3 6 . . . 3 Combat Hostiles 1 | . . 1 . . . . Follow-up Attacks 2 | . 2 . . . . . Damage Inflicted 2777 | 13 654 1255 . . 193 662 Guns 178 | 13 57 . . . 108 . Cannons . | . . . . . . . Explosions . | . . . . . . . Melee 2514 | . 597 1255 . . . 662 Ramming 85 | . . . . . 85 . Kinetic 70 | 13 57 . . . . . Thermal . | . . . . . . . Explosive . | . . . . . . . Electromagnetic 108 | . . . . . 108 . Impact 2486 | . 597 1255 . . . 634 Slashing 28 | . . . . . . 28 Piercing . | . . . . . . . Highest Corruption 9 | . . . . . 9 9 Average Corruption 8 | . . . . . 7 9 Corruption Purged . | . . . . . . . Corruption Blocked . | . . . . . . . Effects 16 | . . . . . 5 11 Message Errors 4 | . . . . . 2 2 Matter Fused 4 | . . . . . . 4 Heat Flow Errors 1 | . . . . . . 1 Energy Discharges 4 | . . . . . 3 1 Parts Rejected 1 | . . . . . . 1 Data Loss (minor) 1 | . . . . . . 1 Alerts 1 | . . . . . . 1 Overload Shots . | . . . . . . . Overflow Damage 795 | . 235 275 . . . 285 Projectiles . | . . . . . . . Explosions . | . . . . . . . Melee 795 | . 235 275 . . . 285 Knockbacks 11 | . 3 6 . . . 2 Impact 11 | . 3 6 . . . 2 Kinetic . | . . . . . . . Secondary . | . . . . . . . Self-Inflicted Damage 85 | . . . . . 85 . Shots . | . . . . . . . Rammed . | . . . . . . . Targets Rammed . | . . . . . . . Kicked . | . . . . . . . Crushed . | . . . . . . . Highest Temperature 179 | . . 3 . . 54 179 Average Temperature 30 | . . 3 . . 21 41 Received Heat Transfer 786 | . 69 297 . 6 36 378 Siege Activations . | . . . . . . . Robots Corrupted . | . . . . . . . Combat Hostiles . | . . . . . . . Parts Fried 28 | . 14 6 . . 1 7 Impact Corruptions 31 | . 11 12 . . . 8 Robots Melted . | . . . . . . . Combat Hostiles . | . . . . . . . Parts Melted . | . . . . . . . Heat Transferred . | . . . . . . . Parts Sabotaged . | . . . . . . . Parts Stolen . | . . . . . . . Parts Stripped . | . . . . . . . Power Chain Reactions . | . . . . . . . Missiles Intercepted . | . . . . . . . Alert | -11 -10 -10 -10 -9 -8 -8 ------- Run | Scr Mat Min Exi Min Mat Sto Peak Influence 176 | 5 176 125 . 24 36 164 Initial 2 | . 2 . . . . . Average 38 | . 58 41 . 11 15 68 Maximum Alert Level . | . . . . . . . Low Security (%) 100 | 100 100 100 . 100 100 100 Level 1 . | . . . . . . . Level 2 . | . . . . . . . Level 3 . | . . . . . . . Level 4 . | . . . . . . . Level 5 . | . . . . . . . High Security . | . . . . . . . Max Security . | . . . . . . . Squads Dispatched 6 | . . 1 . . 1 4 Investigation 4 | . . 1 . . 1 2 Extermination . | . . . . . . . Reinforcement 1 | . . . . . . 1 Assault . | . . . . . . . Garrison 1 | . . . . . . 1 Intercept . | . . . . . . . Searches Triggered . | . . . . . . . Construction Impeded . | . . . . . . . Haulers Reinforced . | . . . . . . . Active Scanning Responses . | . . . . . . . Cargo Convoy Interrupts . | . . . . . . . Stealth | -11 -10 -10 -10 -9 -8 -8 --------- Run | Scr Mat Min Exi Min Mat Sto Distress Signals 4 | . 1 . . . 1 2 Communications Jammed . | . . . . . . . Distress Signals . | . . . . . . . Times Spotted 69 | . 13 29 . 2 6 19 Peak Tracking Total 19 | . 5 19 . 2 5 16 Tactical Retreats 6 | . . 4 . 1 . 1 Traps | -11 -10 -10 -10 -9 -8 -8 ------- Run | Scr Mat Min Exi Min Mat Sto Traps Triggered 1 | . 1 . . . . . Indirectly . | . . . . . . . Trap Hack Attempts . | . . . . . . . Triggered . | . . . . . . . Disarmed . | . . . . . . . Reprogrammed . | . . . . . . . Reused . | . . . . . . . Traps Extracted . | . . . . . . . Installed . | . . . . . . . Triggered . | . . . . . . . Machines | -11 -10 -10 -10 -9 -8 -8 ---------- Run | Scr Mat Min Exi Min Mat Sto Machines Disabled 3 | . 1 . . . . 2 Max in Single Turn 1 | . 1 . . . . 1 Machines Sabotaged . | . . . . . . . Garrisons Compromised . | . . . . . . . Overloaded Fab Kills . | . . . . . . . Hacking | -11 -10 -10 -10 -9 -8 -8 --------- Run | Scr Mat Min Exi Min Mat Sto Machines Accessed 18 | . 7 1 1 1 5 3 Terminals 13 | . 6 . . . 4 3 Fabricators . | . . . . . . . Repair Stations 1 | . 1 . . . . . Recycling Units 1 | . . . . . 1 . Scanalyzers . | . . . . . . . Garrison Access . | . . . . . . . Total Hacks 41 | . 19 1 2 1 9 9 Successful 31 | . 16 1 2 1 6 5 Failed 10 | . 3 . . . 3 4 Catastrophic . | . . . . . . . Database Lockouts . | . . . . . . . Manual 25 | . 11 . 1 . 5 8 Terminals 33 | . 16 . . . 8 9 Fabricators . | . . . . . . . Repair Stations 3 | . 3 . . . . . Recycling Units 1 | . . . . . 1 . Scanalyzers . | . . . . . . . Garrison Access . | . . . . . . . Terminal Hacks 15 | . 6 1 2 1 3 2 Record 3 | . 1 . 2 . . . Part Schematic 1 | . . . . . . 1 Open Door 2 | . . 1 . 1 . . Level Access Points 1 | . 1 . . . . . Branch Access Points 3 | . 1 . . . 1 1 Unreport Threat 2 | . 1 . . . 1 . Locate Traps 1 | . . . . . 1 . Zone Layout 2 | . 2 . . . . . Fabricator Hacks . | . . . . . . . Repair Station Hacks 3 | . 3 . . . . . Scan Component 1 | . 1 . . . . . Repair 1 | . 1 . . . . . Refit 1 | . 1 . . . . . Recycling Unit Hacks 1 | . . . . . 1 . Retrieve Components 1 | . . . . . 1 . Scanalyzer . | . . . . . . . Garrison Access Hacks . | . . . . . . . Unauthorized Hacks 12 | . 7 . . . 2 3 Terminals 12 | . 7 . . . 2 3 Assimilate 2 | . 2 . . . . . Botnet 10 | . 5 . . . 2 3 Fabricators . | . . . . . . . Repair Stations . | . . . . . . . Recycling Units . | . . . . . . . Scanalyzers . | . . . . . . . Garrison Access . | . . . . . . . Data Cores Recovered 1 | . . . . . . 1 Used 1 | . . . . . . 1 Hacking Detections 8 | . 3 . . . 3 2 Full Trace Events 5 | . 2 . . . 1 2 Feedback Events 1 | . . . . . 1 . Corruption 1 | . . . . . 1 . Feedback Blocked . | . . . . . . . Robot Schematics Acquired . | . . . . . . . Robots Built . | . . . . . . . Authchips . | . . . . . . . Time . | . . . . . . . Total Robot Build Rating . | . . . . . . . Part Schematics Acquired 1 | . . . . . . 1 Parts Built . | . . . . . . . Authchips . | . . . . . . . Time . | . . . . . . . Total Part Build Rating . | . . . . . . . Parts Repaired 1 | . 1 . . . . . Time 26 | . 26 . . . . . Parts Recycled . | . . . . . . . Recycled Matter . | . . . . . . . Retrieved Matter . | . . . . . . . Retrieved Components 1 | . . . . . 1 . Parts Scanalyzed . | . . . . . . . Part Schematics Acquired . | . . . . . . . Parts Damaged . | . . . . . . . Bothacking | -11 -10 -10 -10 -9 -8 -8 ------------ Run | Scr Mat Min Exi Min Mat Sto Used RIF Installer . | . . . . . . . Robots Hacked . | . . . . . . . Non-combat . | . . . . . . . Combat . | . . . . . . . Robot Hacks Applied . | . . . . . . . Relay Couplers Released . | . . . . . . . Fabnet Peak Effective % . | . . . . . . . Robots Rewired . | . . . . . . . Allies Hacked . | . . . . . . . Hacks Repelled . | . . . . . . . Allies | -11 -10 -10 -10 -9 -8 -8 -------- Run | Scr Mat Min Exi Min Mat Sto Total Allies 3 | . . . . 3 . . Largest Group 3 | . . . . 3 1 . Highest-Rated Group 40 | . . . . 40 16 . Highest-Rated Ally 16 | . . . . 16 16 . Total Orders . | . . . . . . . Ally Attacks . | . . . . . . . Total Damage . | . . . . . . . Kills . | . . . . . . . Allies Corrupted . | . . . . . . . Allies Melted . | . . . . . . . Intel | -11 -10 -10 -10 -9 -8 -8 ------- Run | Scr Mat Min Exi Min Mat Sto Robot Analysis Total . | . . . . . . . Derelict Logs Recovered 1 | . . 1 . . . . Drone Launches . | . . . . . . . Drone Recoveries . | . . . . . . . Exploration | -11 -10 -10 -10 -9 -8 -8 ------------- Run | Scr Mat Min Exi Min Mat Sto Turns Passed 3065 | 71 870 650 192 680 278 324 Spaces Moved 3017 | 43 621 778 270 602 360 343 Core 7 | 7 . . . . . . Treads . | . . . . . . . Legs 917 | 36 609 272 . . . . Wheels . | . . . . . . . Hover 397 | . 12 . . . 42 343 Flight 1696 | . . 506 270 602 318 . Fastest Speed 20 | 50 120 34 34 110 20 43 Average Speed 83 | 108 121 68 68 111 37 54 Slowest Speed 200 | 120 200 197 114 114 150 150 Overloaded Moves . | . . . . . . . Propulsion Burnouts . | . . . . . . . Robots Hopped 4 | . . 3 . . 1 . Cave-ins Triggered 1 | . . . . . 1 . Exploration Rate (%) 57 | 4 90 94 63 79 32 43 Regions Visited 6 Branch Regions 4 Pre-discovered Areas 2 | . . 2 . . . . Known Exits Taken 6 | 1 1 1 1 1 1 . Unknown Exits Taken . | . . . . . . . Scrap Searched 1 | . . . . 1 . . Spaces Dug 20 | . 3 . . . 11 6 Terrain Destroyed 21 | . 3 . . . 12 6 Melee 19 | . 3 . . . 10 6 Projectile 1 | . . . . . 1 . AOE . | . . . . . . . Terrain Rammed 1 | . . . . . 1 . Walls Destroyed 1 | . . . . . 1 . Machines Disabled . | . . . . . . . Actions | -11 -10 -10 -10 -9 -8 -8 --------- Run | Scr Mat Min Exi Min Mat Sto Total 3389 | 64 693 828 278 611 476 439 Wait 164 | 10 31 6 . . 63 54 Move 3003 | 42 620 772 269 601 356 343 Hop 3 | . . 2 . . 1 . Pick Up 36 | 4 11 3 4 2 6 6 Fast Attach 20 | 3 1 5 . 2 4 5 Attach 18 | 4 . 1 . . 9 4 Detach 9 | . . . . . 5 4 Swap 13 | . 4 1 2 1 5 . Drop 26 | . 3 4 3 5 8 3 Fire 12 | 1 4 . . . 7 . Melee 83 | . 19 34 . . 10 20 Ram 1 | . . . . . 1 . Kick . | . . . . . . . Crush . | . . . . . . . Escape Stasis 1 | . . . . . 1 . Rewire . | . . . . . . . Trap . | . . . . . . . Miscellaneous . | . . . . . . . Route ------- -11/Scrapyard -10/Materials (discovered 5 exits: *Mat x3 / *Min x2) -10/Mines (discovered 3 exits: *Mat x2 / *Exi) -10/Exiles (discovered 2 exits: *Min x2) -9/Mines (discovered 2 exits: *Mat x2) -8/Materials -8/Storage (discovered 1 exit: Rec) History --------- Turn | Location | Event 5 | -11/Scrapyard | Identified exit to Materials 5 | -11/Scrapyard | Discovered exit to Materials (range 16) 72 | -11/Scrapyard | Entered Materials 72 | -10/Materials | Evolved 1 slot: Propulsion x1 124 | -10/Materials | Identified exit to Mines 124 | -10/Materials | Discovered exit to Mines (range 12) 223 | -10/Materials | Identified exit to Materials 223 | -10/Materials | Discovered exit to Materials (range 16) 318 | -10/Materials | Build established: Hacker-Mutant 531 | -10/Materials | Repaired Lgt. Ion Engine? 576 | -10/Materials | Discovered exit to Materials (range 13) 942 | -10/Materials | Entered Mines 974 | -10/Mines | Discovered exit to Materials (range 10) 1098 | -10/Mines | Learned location of Storage (-8) 1100 | -10/Mines | Found a damaged Exp. Sensor Array with a note attached 1102 | -10/Mines | Found Prototype Device 1181 | -10/Mines | Learned location of Zion (-7) 1188 | -10/Mines | Assembled infested the area 1193 | -10/Mines | Assisted by a Guerilla fighting off Assembled 1255 | -10/Mines | Core integrity fell below 50% 1460 | -10/Mines | Discovered exit to Materials (range 2) 1515 | -10/Mines | Met a Derelict shopkeep closing up shop 1590 | -10/Mines | Deemed a non-threat by the Exiles lab entrance 1591 | -10/Mines | Identified exit to Exiles 1591 | -10/Mines | Discovered exit to Exiles (range 5) 1592 | -10/Mines | Entered Exiles 1598 | -10/Exiles | Identified exit to Mines 1598 | -10/Exiles | Discovered exit to Mines (range 14) 1603 | -10/Exiles | Met 8R-AWN 1608 | -10/Exiles | Met EX-HEX 1618 | -10/Exiles | Met EX-BIN 1622 | -10/Exiles | Aligned with FarCom system 1623 | -10/Exiles | Given EX-Vault access code 1637 | -10/Exiles | Opened EX-Vault 1640 | -10/Exiles | Found Prototype Device 1648 | -10/Exiles | Found Prototype Processor 1649 | -10/Exiles | Identified Skeleton Box 1650 | -10/Exiles | Identified 0b10 Alert Chip 1676 | -10/Exiles | Warned to stay clear of 0b10 Research branches 1707 | -10/Exiles | Met EX-DEC 1774 | -10/Exiles | Discovered exit to Mines (range 11) 1784 | -10/Exiles | Stole two prototypes: 0b10 Alert Chip, Skeleton Box 1784 | -10/Exiles | Entered Mines 1812 | -9/Mines | Met a Derelict bent on vengeance 1896 | -9/Mines | Found a hidden stash of uninstalled traps 1992 | -9/Mines | Assisted by bots powering up and referring to "LRC-V3" 2155 | -9/Mines | Identified exit to Materials 2155 | -9/Mines | Discovered exit to Materials (range 7) 2223 | -9/Mines | Found the Drone Emporium 2450 | -9/Mines | Discovered exit to Materials (range 12) 2464 | -9/Mines | Entered Materials 2464 | -8/Materials | Accompanied by 1 ally 2464 | -8/Materials | Evolved 4 slots: Propulsion x3, Utility x1 2465 | -8/Materials | Identified Exp. Sensor Array 2526 | -8/Materials | Identified exit to Storage 2526 | -8/Materials | Discovered exit to Storage (range 14) 2661 | -8/Materials | Lost 4 parts (3n1u) 2693 | -8/Materials | Crushed by falling debris 2740 | -8/Materials | Lost 4 parts (3n1u) 2742 | -8/Materials | Entered Storage 2951 | -8/Storage | Identified exit to Recycling 3063 | -8/Storage | Garrison activated, responded to threat 3066 | -8/Storage | Self-destructed Last Messages --------------- 03017_ R-06 Scavenger collects Lgt. Assault Rifle. 03018_ Acquired 9 matter. 03018_ S-10 Pest knocked back. 03020_ R-06 Scavenger collects Flight Unit. 03021_ K-01 Serf collects debris. 03022_ Destroyed Lgt. Assault Rifle. 03022_ S-10 Pest system corrupted by crushing effect. 03023_ S-10 Pest system terminally corrupted. 03023_ Flight Unit fried. 03024_ R-06 Scavenger collects Flight Unit. 03024_ K-01 Serf collects debris. 03028_ Transport Mainframe disabled. 03042_ Critical hit (Burn: +37). 03045_ Imp. Hover Unit destroyed. 03060_ System corrupted: Component data lost. 03061_ Lgt. Armor Plating destroyed. 03063_ Y-45 Defender calls for garrison reinforcements. 03063_ ALERT: Activating Garrison Access S001. 03063_ Critical hit (Burn: +37). 03064_ Airjet destroyed. Map ----- +----------------------------------------------------+ | ?????????????????????????????????????????????????? | | ?????????????????????????????????????????????????? | | ?????????????????????????????????????????????????? | | ?????????????????????????????????????????????????? | | ?????????????????????????????????????????????????? | | ?????????????????????????????????????????????????? | | ?????????????????????????????????????????????????? | | ?????????????????????????????????????????????????? | | ?????????????????????????????????????????????????? | | ?????????????????????????????????????????????????? | | ?????????????????????????????????????????????????? | | ??????????????w???????????? ???????????????????? | | ??????????????????????????? #??????????????????? | | ??????????????????????????? #??????????????????? | | ??????????????????????????? #??????????????????? | | ??????????????????????????? #??????????????????? | | ??????????????????????????# #??????????????????? | | ??????????????????????????# #??????????????????? | | ??????????????????????????# #???????Y??????????? | | ??????????????????????????# #??????????????????? | | ??????????????????????????# #??????????????????? | | ??????????????????????????# #??????????????????? | | ????????????????########### #??????????????????? | | ????????????????# Y g # #??????????????????? | | ????????????????#g gg #k ^#???Y??Y???????????? | | ????????????????# @Y% #??????????????????? | | ????????????????# """"g #Y #?????????Y????????? | | ????????????????# """" #YY #??????????????????? | | ????????????????# """" #h + ?????????????????? | | ????????????????# #==%# ???????????????? | | ????????????????# # #?"T" ?????????????? | | ????????????????###### #### Y#?? ?????????????? | | ?????????????????????###??# #??????????????????? | | ??????????????????????????# #??????????????????? | | ??????????????????????????# #??????????????????? | | ??????????????????????????# #??????????????????? | | ??????????????????????????# #??????????????????? | | ??????????????????????????# #??????????????????? | | ??????????????????????????# #??????????????????? | | ??????????????????????????# #??????????????????? | | ??????????????????????????# #????????#?????????? | | ??????????????????????????# #?????? #?????????? | | ??????????????????????????# #???? #?????????? | | ??????????????????????????# #?? #?????????? | | ??????????????????????? ?# # """#?????????? | | ???###############???? ?+ + """#???????##? | | ???# #????" ?# # """#???????### | | ???# #????" ?# #?? """??????#### | | ???# #????" ?# #???? """??????#/ % | | ???# #????? ?# #?????? #?????# "" | +----------------------------------------------------+ Best States ------------- Heat Dissipation 31 Energy Generation 10 Energy Capacity 125 Matter Stores 300 Matter Capacity 300 Sight Range 18 Robot Scan Range 20 Terrain Scan Density 10 Additional Mass Support 6 Armor Coverage 150 Resistance: KI 35 Resistance: TH 35 Resistance: EX 35 Resistance: EM 35 Resistance: I 35 Resistance: S 35 Resistance: P 35 Evasion (%) 65 Targeting Accuracy 5 Offensive Hacking 20 Item Schematics ----------------- System Restoration Module | -8/Storage | Hacked Robot Schematics ------------------ None Fabricated ------------ Nothing Alien Tech Used ----------------- None Achievements -------------- None Challenges ------------ None Game ------ Seed CompactElectronPenetrator Manual? 0 Play Time 01:05:26 Cumulative 72.9 hours Start 2022.11.16 @ 22:19:01 End 2022.11.17 @ 23:23:33 Sessions 5 Manual Loads 0 Difficulty Explorer Special Mode None Game No. 89 Rogue 0 Adventurer 60 Explorer 29 Win Type - Total 3 Types 3/0/0/0/0/0/0/0/0 Lore% 36 Gallery% 58 Achievement% 44 Wizard Run 0 Options --------- ASCII 1 Keyboard 1 Movement Mouse Keybinds 0 Fullscreen 1 Font 18/SmallcapsGlow Map View 76x50 Tactical HUD 1 Map Filters NONE Filters NONE Steam 1 RUN: fc2bd6e9-b690-4f25-b577-cadd9ca637be